Workbook

Sheet Лист2
B4: полотно | E4: высота мм | G4: ширина мм | H4: толщина проема мм | I4: площадь м2 | K4: матирование | M4: Тип коробки | N4: Цвет | R4: Фурнитура
B5: 1 | E5: 2800 | F5: 1 | G5: 900 | H5: 90 | I5: =E5*G5/1000000 -> 2.52 | K5: 5 | M5: 1 | N5: 1 | O5: =INDEX(Лист4!$I$2:$L$7,M5,N5)*(1+(E5*2+G5>5800)*ISNUMBER(FIND("V",INDEX(Лист4!$H$2:$H$7,M5)))*0.5+(G5>1100)*ISNUMBER(FIND("Фитинг",INDEX(Лист4!$H$2:$H$7,M5))))+I5*CHOOSE(B5,Лист4!B30,Лист4!B31)+I5*CHOOSE(K5,Лист4!B56,Лист4!B57,Лист4!B58,Лист4!B59,Лист4!B60) -> 8022 | R5: 2 | T5: =CHOOSE(R5,Лист4!J36,Лист4!J37,Лист4!J38)*IF(AND(ISNUMBER(FIND("Titan",INDEX(Лист4!$I$36:$I$38,R5))),G5>1100),2,1) -> 3890 | Z5: =O5+T5 -> 11912

Sheet полотно
B1: Сотовое полотно | C1: трубчатое полотно | D1: полнотелое полотно | E1: (ПП IE 30) | F1: (ПП IE 60)
A2: Вид отделки | B2: цена руб/м2 | C2: цена руб/м2 | D2: цена руб/м2 | E2: цена руб/м2 | F2: цена руб/м2
A3: шпон эконом | B3: 3890 | C3: 4520 | D3: 4830 | E3: 5250 | F3: 6510
A4: шпон натурал | B4: 4410 | C4: 5040 | D4: 5360 | E4: 5780 | F4: 7030
A5: Пластик белый | B5: 2100 | C5: 2630 | D5: 2940 | E5: 2940 | F5: 6510
A6: Пластик под дерево | B6: 2100 | C6: 2630 | D6: 2940 | E6: 2940 | F6: 5040
A7: эмаль | B7: 3890 | C7: 4520 | D7: 4830 | E7: 4830 | F7: 6510
A11: тонировка шпона | B11: цена руб/м2
A12: ДА | B12: 630
A13: НЕТ | B13: 0
A16: Доп опция пластика
A17: вид отделки | B17: белый | C17: дерево
A18: цена руб/лист | B18: 2600 | C18: 3000
A21: Фрезеровка | B21: 85
A25: сотовое
A26: трубчатое
A27: полнотелое
A28: (ПП IE 30)
A29: (ПП IE 60)

Sheet Алюм коробки Фрист
A1: Под глухое полотно RAL 9016 | H1: RAL 9016 | L1: Анодировка | P1: неокрашено
B2: 700 | C2: 900 | D2: 1200 | E2: 1500 | F2: 1800 | H2: высота | I2: ширина | J2: стоимость | L2: высота | M2: ширина | N2: стоимость | P2: высота | Q2: ширина | R2: стоимость
A3: 2100 | B3: 2860 | C3: 2860 | D3: 2940 | E3: 2960 | F3: 2975 | H3: =Лист2!#REF! ->  | I3: =Лист2!#REF! ->  | J3: =INDEX(B3:F6,MIN(4,SUMPRODUCT(--(A3:A6<H3))+1),MIN(5,SUMPRODUCT(--(B2:F2<I3))+1)) ->  | L3: =H3 ->  | N3: =INDEX(B10:F13,MIN(4,SUMPRODUCT(--(A10:A13<L3))+1),MIN(5,SUMPRODUCT(--(B9:F9<M3))+1)) ->  | P3: =L3 ->  | R3: =INDEX(B17:F20,MIN(4,SUMPRODUCT(--(A17:A20<P3))+1),MIN(5,SUMPRODUCT(--(B16:F16<Q3))+1)) -> 
A4: 2300 | B4: 2950 | C4: 2950 | D4: 2965 | E4: 2980 | F4: 2995 | H4: =Лист2!#REF! ->  | I4: =Лист2!#REF! ->  | J4: =INDEX(B3:F6,MIN(4,SUMPRODUCT(--(A3:A6<H4))+1),MIN(5,SUMPRODUCT(--(B2:F2<I4))+1)) ->  | L4: =H4 ->  | N4: =INDEX(B10:F13,MIN(4,SUMPRODUCT(--(A10:A13<L4))+1),MIN(5,SUMPRODUCT(--(B9:F9<M4))+1)) ->  | R4: =INDEX(B17:F20,MIN(4,SUMPRODUCT(--(A17:A20<P4))+1),MIN(5,SUMPRODUCT(--(B16:F16<Q4))+1)) -> 
A5: 2700 | B5: 2980 | C5: 2990 | D5: 3010 | E5: 3025 | F5: 3035 | H5: =Лист2!#REF! ->  | I5: =Лист2!#REF! ->  | J5: =INDEX(B3:F6,MIN(4,SUMPRODUCT(--(A3:A6<H5))+1),MIN(5,SUMPRODUCT(--(B2:F2<I5))+1)) ->  | N5: =INDEX(B10:F13,MIN(4,SUMPRODUCT(--(A10:A13<L5))+1),MIN(5,SUMPRODUCT(--(B9:F9<M5))+1)) ->  | R5: =INDEX(B17:F20,MIN(4,SUMPRODUCT(--(A17:A20<P5))+1),MIN(5,SUMPRODUCT(--(B16:F16<Q5))+1)) -> 
A6: 3000 | B6: 3010 | C6: 3025 | D6: 3035 | E6: 3055 | F6: 3065 | H6: =Лист2!#REF! ->  | I6: =Лист2!#REF! ->  | J6: =INDEX(B3:F6,MIN(4,SUMPRODUCT(--(A3:A6<H6))+1),MIN(5,SUMPRODUCT(--(B2:F2<I6))+1)) ->  | N6: =INDEX(B10:F13,MIN(4,SUMPRODUCT(--(A10:A13<L6))+1),MIN(5,SUMPRODUCT(--(B9:F9<M6))+1)) ->  | R6: =INDEX(B17:F20,MIN(4,SUMPRODUCT(--(A17:A20<P6))+1),MIN(5,SUMPRODUCT(--(B16:F16<Q6))+1)) -> 
H7: =Лист2!#REF! ->  | I7: =Лист2!#REF! ->  | J7: =INDEX(B3:F6,MIN(4,SUMPRODUCT(--(A3:A6<H7))+1),MIN(5,SUMPRODUCT(--(B2:F2<I7))+1)) ->  | N7: =INDEX(B10:F13,MIN(4,SUMPRODUCT(--(A10:A13<L7))+1),MIN(5,SUMPRODUCT(--(B9:F9<M7))+1)) ->  | R7: =INDEX(B17:F20,MIN(4,SUMPRODUCT(--(A17:A20<P7))+1),MIN(5,SUMPRODUCT(--(B16:F16<Q7))+1)) -> 
A8: Под глухое полотно анодировка
B9: 700 | C9: 900 | D9: 1200 | E9: 1500 | F9: 1800
A10: 2100 | B10: 3060 | C10: 3060 | D10: 3075 | E10: 3095 | F10: 3105
A11: 2300 | B11: 3070 | C11: 3080 | D11: 3100 | E11: 3115 | F11: 3130
A12: 2700 | B12: 3110 | C12: 3125 | D12: 3140 | E12: 3160 | F12: 3180
A13: 3000 | B13: 3145 | C13: 3160 | D13: 3175 | E13: 3190 | F13: 3210
A15: Под глухое полотно неокрашено
B16: 700 | C16: 900 | D16: 1200 | E16: 1500 | F16: 1800
A17: 2100 | B17: 2730 | C17: 2730 | D17: 2740 | E17: 2760 | F17: 2770
A18: 2300 | B18: 2740 | C18: 2750 | D18: 2765 | E18: 2775 | F18: 2790
A19: 2700 | B19: 2775 | C19: 2785 | D19: 2800 | E19: 2820 | F19: 2830
A20: 3000 | B20: 2810 | C20: 2820 | D20: 2830 | E20: 2845 | F20: 2860
A22: Под цельностеклянное полотно Ral 9016
B23: 700 | C23: 900 | D23: 1200 | E23: 1500 | F23: 1800
A24: 2100 | B24: 3570 | C24: 3570 | D24: 3935 | E24: 3955 | F24: 3975
A25: 2300 | B25: 3570 | C25: 3945 | D25: 3960 | E25: 3980 | F25: 4005
A26: 2700 | B26: 3980 | C26: 3995 | D26: 4015 | E26: 4035 | F26: 4055
A27: 3000 | B27: 4020 | C27: 4035 | D27: 4055 | E27: 4070 | F27: 4095
A29: Под цельностеклянное полотно анодировка
B30: 700 | C30: 900 | D30: 1200 | E30: 1500 | F30: 1800
A31: 2100 | B31: 3740 | C31: 3740 | D31: 4125 | E31: 4140 | F31: 4165
A32: 2300 | B32: 3740 | C32: 4130 | D32: 4150 | E32: 4170 | F32: 4195
A33: 2700 | B33: 4170 | C33: 4185 | D33: 4205 | E33: 4230 | F33: 4250
A34: 3000 | B34: 4215 | C34: 4230 | D34: 4250 | E34: 4270 | F34: 4290
A36: Под цельностеклянное полотно неокрашено
B37: 700 | C37: 900 | D37: 1200 | E37: 1500 | F37: 1800
A38: 2100 | B38: 3440 | C38: 3440 | D38: 3790 | E38: 3810 | F38: 3830
A39: 2300 | B39: 3440 | C39: 3800 | D39: 3815 | E39: 3835 | F39: 3860
A40: 2700 | B40: 3835 | C40: 3850 | D40: 3870 | E40: 3890 | F40: 3910
A41: 3000 | B41: 3875 | C41: 3890 | D41: 3910 | E41: 3925 | F41: 3950

Sheet Деревянные коробки
A1: коробка деревянная стандартная
A2: цена за п/м руб | B2: стоимость
A3: 430 | B3: =(Лист2!#REF!*2+Лист2!#REF!)*'Деревянные коробки'!A3/1000 -> 
A4: 430 | B4: =(Лист2!#REF!*2+Лист2!#REF!)*'Деревянные коробки'!A4/1000 -> 
A5: 430 | B5: =(Лист2!#REF!*2+Лист2!#REF!)*'Деревянные коробки'!A5/1000 -> 
A6: 430 | B6: =(Лист2!#REF!*2+Лист2!#REF!)*'Деревянные коробки'!A6/1000 -> 
A7: 430 | B7: =(Лист2!#REF!*2+Лист2!#REF!)*'Деревянные коробки'!A7/1000 -> 
A9: коробка деревянная усиленная
A10: 570 | B10: =(Лист2!#REF!*2+Лист2!#REF!)*'Деревянные коробки'!A10/1000 -> 
A11: 570 | B11: =(Лист2!#REF!*2+Лист2!#REF!)*'Деревянные коробки'!A11/1000 -> 
A12: 570 | B12: =(Лист2!#REF!*2+Лист2!#REF!)*'Деревянные коробки'!A12/1000 -> 
A13: 570 | B13: =(Лист2!#REF!*2+Лист2!#REF!)*'Деревянные коробки'!A13/1000 -> 
A14: 570 | B14: =(Лист2!#REF!*2+Лист2!#REF!)*'Деревянные коробки'!A14/1000 -> 
A16: наличники
A17: наименование | B17: цена за п/м руб | C17: стоимость
A18: плоский | B18: 320 | C18: =(Лист2!#REF!*2+Лист2!#REF!)*'Деревянные коробки'!B18/1000 -> 
A19: плоский | B19: 320 | C19: =(Лист2!#REF!*2+Лист2!#REF!)*'Деревянные коробки'!B19/1000 -> 
A20: плоский | B20: 320 | C20: =(Лист2!#REF!*2+Лист2!#REF!)*'Деревянные коробки'!B20/1000 -> 
A21: плоский | B21: 320 | C21: =(Лист2!#REF!*2+Лист2!#REF!)*'Деревянные коробки'!B21/1000 -> 
A22: плоский | B22: 320 | C22: =(Лист2!#REF!*2+Лист2!#REF!)*'Деревянные коробки'!B22/1000 -> 
A23: телескопический | B23: 380 | C23: =(Лист2!#REF!*2+Лист2!#REF!)*'Деревянные коробки'!B23/1000 -> 
A24: телескопический | B24: 380 | C24: =(Лист2!#REF!*2+Лист2!#REF!)*'Деревянные коробки'!B24/1000 -> 
A25: телескопический | B25: 380 | C25: =(Лист2!#REF!*2+Лист2!#REF!)*'Деревянные коробки'!B25/1000 -> 
A26: телескопический | B26: 380 | C26: =(Лист2!#REF!*2+Лист2!#REF!)*'Деревянные коробки'!B26/1000 -> 
A27: телескопический | B27: 380 | C27: =(Лист2!#REF!*2+Лист2!#REF!)*'Деревянные коробки'!B27/1000 -> 
A29: доборы
B30: стоимость | C30: цена
A31: 1 | B31: =(Лист2!#REF!*2+Лист2!#REF!)/1000*(Лист2!#REF!-100)/1000*C31+(Лист2!#REF!*2+Лист2!#REF!)/1000*B37 ->  | C31: 2890
A32: 2 | B32: =(Лист2!#REF!*2+Лист2!#REF!)/1000*(Лист2!#REF!-100)/1000*C32+(Лист2!#REF!*2+Лист2!#REF!)/1000*B37 ->  | C32: 2890
A33: 3 | B33: =(Лист2!#REF!*2+Лист2!#REF!)/1000*(Лист2!#REF!-90)/1000*C33+(Лист2!#REF!*2+Лист2!#REF!)/1000*B37 ->  | C33: 2890
A34: 4 | B34: =(Лист2!#REF!*2+Лист2!#REF!)/1000*(Лист2!#REF!-90)/1000*C34+(Лист2!#REF!*2+Лист2!#REF!)/1000*B37 ->  | C34: 2890
A35: 5 | B35: =(Лист2!#REF!*2+Лист2!#REF!)/1000*(Лист2!#REF!-90)/1000*C35+(Лист2!#REF!*2+Лист2!#REF!)/1000*B37 ->  | C35: 2890
A37: Фрезеровка | B37: 85
B39: Сотовое полотно | C39: трубчатое полотно | D39: полнотелое полотно | E39: (ПП IE 30) | F39: (ПП IE 60)
B40: цена руб/м2 | C40: цена руб/м2 | D40: цена руб/м2 | E40: цена руб/м2 | F40: цена руб/м2
A41: плоский | B41: =C18 ->  | C41: =C19 ->  | D41: =C20 ->  | E41: =C21 ->  | F41: =C22 -> 
A42: телескопический | B42: =C23 ->  | C42: =C24 ->  | D42: =C25 ->  | E42: =C26 ->  | F42: =C27 -> 

Sheet Лист4
B1: анодировка | C1: 9006/9016 | D1: неокрас | E1: - | I1: анодировка | J1: 9006/9016 | K1: неокрас | L1: -
A2: Торцевая V | B2: =CEILING((235.21*6.2+1000+200),10) -> 2660 | C2: =CEILING(((194.31)*6.2+1000+200),10) -> 2410 | D2: =CEILING(((153.71)*6.2+1000+200),10) -> 2160 | F2: Толщина стены | H2: Торцевая V | I2: =CEILING((235.21*6.2+1000+200),10) -> 2660 | J2: =CEILING(((194.31)*6.2+1000+200),10) -> 2410 | K2: =CEILING(((153.71)*6.2+1000+200),10) -> 2160 | M2: Толщина стены
A3: Угловая V | B3: =CEILING(((235.21+42.57)*6.2+1000+500),10) -> 3230 | C3: =CEILING(((194.31+35.76)*6.2+1000+500),10) -> 2930 | D3: =CEILING(((153.71+27.28)*6.2+1000+500),10) -> 2630 | F3: =Лист2!#REF! ->  | H3: Угловая V | I3: =CEILING(((235.21+42.57)*6.2+1000+500),10) -> 3230 | J3: =CEILING(((194.31+35.76)*6.2+1000+500),10) -> 2930 | K3: =CEILING(((153.71+27.28)*6.2+1000+500),10) -> 2630 | M3: =Лист2!H5 -> 90
A4: Телескопическая V | B4: =CEILING(((235.21+42.57+69.02+93.53)*6.2+1000+700+((F3-75)/1000*6.2*300+30*6.2)),10) ->  | C4: =CEILING(((194.31+35.76+57.72+78.06)*6.2+1000+700+((F3-75)/1000*6.2*300+30*6.2)),10) ->  | D4: =CEILING(((153.71+27.28+43.27+57.8)*6.2+1000+700+((F3-75)/1000*6.2*300+30*6.2)),10) ->  | H4: Телескопическая V | I4: =CEILING(((235.21+42.57+69.02+93.53)*6.2+1000+700+((M3-75)/1000*6.2*300+30*6.2)),10) -> 4650 | J4: =CEILING(((194.31+35.76+57.72+78.06)*6.2+1000+700+((M3-75)/1000*6.2*300+30*6.2)),10) -> 4190 | K4: =CEILING(((153.71+27.28+43.27+57.8)*6.2+1000+700+((M3-75)/1000*6.2*300+30*6.2)),10) -> 3670
A5: Обжимная V | B5: =CEILING(((33.76+248.9+53.58/3.9)*6.2+1000+500),10) -> 3340 | C5: =CEILING(((27.3+208.75+63.58/3.9)*6.2+1000+500),10) -> 3070 | D5: =CEILING(((20.9+153.8+63.58/3.9)*6.2+1000+500),10) -> 2690 | H5: Обжимная V | I5: =CEILING(((33.76+248.9+53.58/3.9)*6.2+1000+500),10) -> 3340 | J5: =CEILING(((27.3+208.75+63.58/3.9)*6.2+1000+500),10) -> 3070 | K5: =CEILING(((20.9+153.8+63.58/3.9)*6.2+1000+500),10) -> 2690
A6: Деревянная Стандарт | E6: ='Деревянные коробки'!B3+'Деревянные коробки'!B31 ->  | H6: Фитинги | L6: =G36 -> 2433.5
A7: Деревянная Усиленная | E7: ='Деревянные коробки'!B10+'Деревянные коробки'!B31 ->  | H7: Фитинги угл | L7: =G37 -> 3372
A13: анодировка
A14: 9006/9016
A15: неокрас
A16: -
A19: Фурнитура
A20: Hafele | B20: 1500
A21: Titan 800 | B21: 2190
A22: Titan 1000 | B22: 2290
A23: Titan 1200 | B23: 2380
A24: Titan 1500 | B24: 2430
A25: Titan 2000 | B25: 3660
A26: Другая
A29: Стекло
A30: 10мм | B30: 1600
A31: 12мм | B31: 2620
A36: Фитинг верхний Т-110 | B36: 308 | F36: фитинги | G36: =B36+B37+B39+B42+B44 -> 2433.5 | I36: Titan T-633+ замок | J36: =B47+B40+B43 -> 1886
A37: Фитинг нижний Т-120 | B37: 308 | F37: фитинги угловые | G37: =B36+B37+B38+B42+B44+B45 -> 3372 | I37: Dorma SR | J37: =B49 -> 3890
A38: Фитинг угловой Т-140К без оси | B38: 480 | F38: Петли Glassmarte | G38: 2200 | I38: Dorma SR+ответка | J38: =B50 -> 6700
A39: Верхняя ось T-133 SSS | B39: 157.5
A40: Замок угловой комплект Т-150 + отв.часть с подпруж.крышкой T-100-6 | B40: 609
A41: Нижний шарнир T-110-12 SSS | B41: 357
A42: Доводчик T-84D | B42: 1610
A43: Ответная часть в пол для замка с круглым ригелем с подпружиненной крышкой T-100-6 | B43: 77
A44: Торцевая заглушка | B44: 50
A45: Фитинг угловой Т-140 с осью | B45: 616
A47: Ручка комплект T-633 38x1000 SSS | B47: 1200
A49: Dorma Studio Rondo | B49: 3890
A50: Dorma Studio Rondo c ответкой | B50: 6700
A51: Петли Glassmarte | B51: 2200
A56: Пленка матовая сплошная | B56: 400
A57: Пленка матовая полосами | B57: 560
A58: Пленка зеркальная | B58: 800
A59: Пленка плотерная резка | B59: 1200
A60: нет | B60: 0
A64: Монтаж
A65: сотовое | B65: 1000
A66: трубчатое | B66: 1000
A67: полнотелое | B67: 1000
A68: (ПП IE 30) | B68: 1500
A69: (ПП IE 60) | B69: 1500
